fUSD/lending_fUSD_20251017
["ID","MTS","AMOUNT","RATE_DAILY","PERIOD"]
[391592144,1760683842742,-211.0,0.00026927,2]
[391592145,1760683842752,-4444.46832788,0.00026967,2]
[391592148,1760683842762,-5975.02365086,0.00026984,2]
[391592150,1760683842772,-161.76,0.00027,15]
[391592153,1760683842782,-163.0,0.00027,2]
[391592157,1760683842793,-236.70518479,0.0002701,2]
[391592160,1760683842803,-211.0,0.00027119,2]
[391592164,1760683842812,-211.0,0.00027119,7]
[391592167,1760683842822,-2000.0,0.00027123,13]
[391592170,1760683842832,-181.02136244,0.00027154,2]
[391592171,1760683842842,-3747.24393923,0.00027161,2]
[391592173,1760683842852,-2864.21659062,0.00027163,2]
[391592174,1760683842862,-2864.21659062,0.00027172,2]
[391592175,1760683842872,-181.02136244,0.00027174,2]
[391592176,1760683842882,-285.68202341,0.00027183,2]
[391592177,1760683842898,-181.02136244,0.00027214,2]
[391592178,1760683842907,-181.02136244,0.00027214,2]
[391592179,1760683842920,-200.0,0.0002723,2]
[391592180,1760683842930,-3747.24393923,0.00027237,2]
[391592181,1760683842940,-285.68202341,0.00027249,2]
[391592182,1760683842950,-2864.21659062,0.00027265,2]
[391592183,1760683842961,-285.68202341,0.00027267,2]
[391592184,1760683842971,-3747.24393923,0.00027269,2]
[391592185,1760683842981,-2864.21659062,0.00027284,2]
[391592186,1760683842991,-285.68202341,0.00027289,2]
[391592187,1760683843001,-3747.24393923,0.00027291,2]
[391592188,1760683843011,-211.0,0.00027306,2]
[391592189,1760683843021,-152.0,0.0002731,3]
[391592190,1760683843031,-1191.51178033,0.00027329,10]
[391592191,1760683843041,-211.0,0.00027393,7]
[391592192,1760683843050,-1414.54568163,0.00027397,13]
[391592193,1760683843060,-201.0,0.00027397,2]
[391592194,1760683843071,-300.0,0.00027397,2]
[391592195,1760683843080,-33932.04,0.00027397,2]
[391592196,1760683843090,-1100.49,0.00027397,16]
[391592197,1760683843100,-694.10668886,0.00027397,2]
[391592198,1760683843110,-26754.78,0.000274,2]
[391592199,1760683843120,-1784.63,0.000274,2]
[391592200,1760683843130,-1784.63,0.000274,2]
[391592201,1760683843139,-1784.63,0.000274,2]
[391592202,1760683843149,-1784.63,0.000274,2]
[391592203,1760683843159,-1784.63,0.000274,2]
[391592204,1760683843174,-1749.83,0.00027499,2]
[391592205,1760683843184,-10000.0,0.000275,2]
[391592206,1760683843195,-16272.9,0.000275,7]
[391592207,1760683843208,-1639.87,0.00027513,2]
[391592209,1760683843218,-211.0,0.00027531,2]
[391592211,1760683843229,-211.0,0.00027556,2]
[391592212,1760683843239,-199.0,0.00027671,7]
[391592213,1760683843248,-5800.0,0.00027795,2]
[391592214,1760683843257,-211.0,0.00027809,2]
[391592215,1760683843266,-191.82334993,0.00027909,7]
[391592216,1760683843276,-199.0,0.00027945,8]
[391592217,1760683843285,-163.0,0.00028,2]
[391592218,1760683843294,-500.0,0.00028041,120]
[391592219,1760683843303,-2000.0,0.00028041,120]
[391592220,1760683843312,-500.0,0.00028041,120]
[391592221,1760683843321,-500.0,0.00028041,120]
[391592223,1760683843331,-1964.20537727,0.000281,2]
[391592224,1760683843340,-211.0,0.00028105,2]
[391592225,1760683843350,-775.22,0.00028187,120]
[391592226,1760683843360,-199.0,0.00028219,9]
[391592229,1760683843445,-1200.0,0.00028244,7]
[391592231,1760683843455,-3075.45673189,0.00028255,2]
[391592232,1760683843464,-211.0,0.00028294,2]
[391592233,1760683843474,-211.0,0.00028308,2]
[391592234,1760683843483,-273.0,0.00028356,2]
[391592235,1760683843494,-211.0,0.00028362,2]
[391592236,1760683843503,-26754.78,0.000284,2]
[391592237,1760683843512,-171.3880409,0.00028405,2]
[391592238,1760683843522,-1199.33,0.00028464,2]
[391592239,1760683843531,-1390.52,0.00028464,2]
[391592240,1760683843541,-199.0,0.00028493,10]
[391592241,1760683843550,-1359.22838839,0.00028499,4]
[391592242,1760683843559,-1359.22838839,0.00028499,4]
[391592243,1760683843569,-1359.22838839,0.00028499,4]
[391592244,1760683843578,-1359.22838839,0.00028499,4]
[391592245,1760683843588,-1359.22838839,0.00028499,4]
[391592246,1760683843598,-1359.22838839,0.00028499,4]
[391592247,1760683843607,-1359.22838839,0.00028499,4]
[391592248,1760683843617,-1359.22838839,0.00028499,4]
[391592249,1760683843626,-1359.22838839,0.00028499,4]
[391592250,1760683843636,-1359.22838839,0.00028499,4]
[391592251,1760683843647,-1359.22838839,0.00028499,4]
[391592252,1760683843658,-1359.22838839,0.00028499,4]
[391592253,1760683843671,-1359.22838839,0.00028499,4]
[391592254,1760683843681,-1359.22838839,0.00028499,4]
[391592255,1760683843692,-1359.22838839,0.00028499,4]
[391592256,1760683843702,-1359.22838839,0.00028499,4]
[391592257,1760683843711,-1359.22838839,0.00028499,4]
[391592258,1760683843722,-1359.22838839,0.00028499,4]
[391592259,1760683843731,-1359.22838839,0.00028499,4]
[391592260,1760683843740,-1359.22,0.00028499,4]
[391592261,1760683843750,-4444.46832788,0.000285,2]
[391592262,1760683843759,-5975.02365086,0.000285,2]
[391592263,1760683843769,-1060.72453554,0.00028503,2]
[391592264,1760683843778,-151.29,0.00028508,2]
[391592265,1760683843788,-3000.0,0.00028518,7]
[391592266,1760683843797,-314.07570756,0.0002859,2]
[391592267,1760683843807,-151.29,0.0002859,2]
[391592268,1760683843817,-151.29,0.0002859,2]
[391592269,1760683843826,-290.23483847,0.00028597,7]
[391592270,1760683843835,-693.69669442,0.00028599,10]
[391592271,1760683843845,-1749.83,0.00028599,2]
[391592272,1760683843854,-1749.83,0.00028599,2]
[391592273,1760683843864,-1749.83,0.00028599,2]
[391592274,1760683843873,-1749.83,0.00028599,2]
[391592275,1760683843884,-1749.83,0.00028599,2]
[391592276,1760683843893,-1749.83419433,0.00028599,2]
[391592277,1760683843902,-944.07897059,0.00028599,2]
[391592278,1760683843912,-273.0,0.000286,2]
[391592279,1760683843925,-300527.23570056,0.000286,5]
[391592280,1760683843939,-271452.09006797,0.000286,5]
[391592281,1760683843950,-1941.46651306,0.000286,5]
[391592282,1760683843962,-1168.5014258,0.000286,5]
[391592283,1760683843973,-442.79269006,0.000286,5]
[391592284,1760683843990,-4126.9087382,0.000286,5]
[391592285,1760683844002,-555.72,0.000286,5]
[391592286,1760683844018,-578044.42128432,0.000286,5]
[391592287,1760683844027,-151.0,0.000286,30]
[391592288,1760683844037,-151.0,0.000286,30]
[391592289,1760683844047,-151.0,0.000286,30]
[391592290,1760683844056,-151.0,0.000286,30]
[391592291,1760683844065,-151.0,0.000286,30]
[391592292,1760683844075,-151.0,0.000286,30]
[391592293,1760683844085,-151.0,0.000286,30]
[391592294,1760683844095,-151.0,0.000286,30]
[391592295,1760683844104,-151.0,0.000286,30]
[391592296,1760683844114,-151.0,0.000286,30]
[391592297,1760683844123,-151.0,0.000286,30]
[391592298,1760683844133,-151.0,0.000286,30]
[391592299,1760683844143,-151.0,0.000286,30]
[391592300,1760683844152,-151.0,0.000286,30]
[391592301,1760683844162,-151.0,0.000286,30]
[391592302,1760683844175,-151.0,0.000286,30]
[391592303,1760683844185,-151.0,0.000286,30]
[391592304,1760683844194,-151.0,0.000286,30]
[391592305,1760683844204,-151.0,0.000286,30]
[391592306,1760683844213,-151.0,0.000286,30]
[391592307,1760683844223,-151.0,0.000286,30]
[391592308,1760683844233,-151.0,0.000286,30]
[391592309,1760683844243,-151.0,0.000286,30]
[391592310,1760683844252,-151.413016,0.000286,30]
[391592311,1760683844262,-155.590506,0.000286,30]
[391592312,1760683844272,-151.0,0.000286,30]
[391592313,1760683844281,-151.0,0.000286,30]
[391592314,1760683844291,-151.0,0.000286,30]
[391592315,1760683844301,-151.0,0.000286,30]
[391592316,1760683844310,-502.343206,0.000286,30]
[391592317,1760683844320,-502.343206,0.000286,30]
[391592318,1760683844329,-502.343206,0.000286,30]
[391592319,1760683844339,-151.0,0.000286,30]
[391592320,1760683844348,-502.343206,0.000286,30]
[391592321,1760683844358,-151.0,0.000286,30]
[391592322,1760683844367,-151.0,0.000286,30]
[391592323,1760683844376,-151.0,0.000286,30]
[391592324,1760683844386,-151.0,0.000286,30]
[391592325,1760683844395,-151.0,0.000286,30]
[391592326,1760683844405,-151.0,0.000286,30]
[391592327,1760683844414,-151.630606,0.000286,30]
[391592328,1760683844427,-151.0,0.000286,30]
[391592329,1760683844437,-181.792755,0.000286,30]
[391592330,1760683844447,-181.792755,0.000286,30]
[391592331,1760683844457,-181.792755,0.000286,30]
[391592332,1760683844466,-181.792755,0.000286,30]
[391592333,1760683844476,-158.846553,0.000286,30]
[391592334,1760683844486,-151.0,0.000286,30]
[391592335,1760683844496,-151.0,0.000286,30]
[391592336,1760683844505,-151.0,0.000286,30]
[391592337,1760683844515,-151.0,0.000286,30]
[391592338,1760683844525,-151.0,0.000286,30]
[391592339,1760683844535,-289.636104,0.000286,30]
[391592340,1760683844545,-151.0,0.000286,30]
[391592341,1760683844555,-151.0,0.000286,30]
[391592342,1760683844565,-510.993371,0.000286,30]
[391592343,1760683844575,-151.0,0.000286,14]
[391592344,1760683844585,-151.0,0.000286,30]
[391592345,1760683844595,-510.993371,0.000286,30]
[391592346,1760683844604,-283.474436,0.000286,30]
[391592347,1760683844614,-151.0,0.000286,30]
[391592348,1760683844623,-510.993371,0.000286,30]
[391592349,1760683844633,-151.0,0.000286,30]
[391592350,1760683844645,-510.993371,0.000286,30]
[391592351,1760683844657,-151.0,0.000286,30]
[391592352,1760683844666,-151.0,0.000286,30]
[391592353,1760683844679,-151.0,0.000286,30]
[391592354,1760683844689,-151.0,0.000286,30]
[391592355,1760683844699,-151.0,0.000286,30]
[391592356,1760683844708,-151.0,0.000286,30]
[391592357,1760683844717,-151.0,0.000286,30]
[391592358,1760683844727,-238.579942,0.000286,30]
[391592359,1760683844736,-151.0,0.000286,30]
[391592360,1760683844747,-151.0,0.000286,30]
[391592361,1760683844756,-151.0,0.000286,30]
[391592362,1760683844766,-151.0,0.000286,30]
[391592363,1760683844776,-151.0,0.000286,30]
[391592364,1760683844786,-151.0,0.000286,30]
[391592365,1760683844795,-151.277531,0.000286,30]
[391592366,1760683844804,-151.0,0.000286,30]
[391592367,1760683844814,-151.0,0.000286,30]
[391592368,1760683844823,-151.0,0.000286,30]
[391592369,1760683844833,-255.08291,0.000286,30]
[391592370,1760683844842,-201.84880705,0.000286,30]
[391592371,1760683844851,-151.0,0.000286,30]
[391592372,1760683844860,-151.0,0.000286,30]
[391592373,1760683844870,-151.0,0.000286,30]
[391592374,1760683844879,-151.0,0.000286,30]
[391592375,1760683844888,-192.506365,0.000286,30]
[391592376,1760683844898,-151.0,0.000286,30]
[391592377,1760683844907,-171.735169,0.000286,30]
[391592378,1760683844916,-151.0,0.000286,30]
[391592379,1760683844930,-151.0,0.000286,30]
[391592380,1760683844939,-151.0,0.000286,30]
[391592381,1760683844948,-151.0,0.000286,30]
[391592382,1760683844958,-151.0,0.000286,30]
[391592383,1760683844967,-151.0,0.000286,30]
[391592384,1760683844978,-152.975929,0.000286,30]
[391592385,1760683844987,-300.441565,0.000286,30]
[391592386,1760683844997,-151.0,0.000286,30]
[391592387,1760683845006,-151.0,0.000286,30]
[391592388,1760683845015,-151.0,0.000286,30]
[391592389,1760683845025,-451.650932,0.000286,30]
[391592390,1760683845035,-151.0,0.000286,10]
[391592391,1760683845044,-151.0,0.000286,30]
[391592392,1760683845054,-151.0,0.000286,30]
[391592393,1760683845063,-151.0,0.000286,30]
[391592394,1760683845073,-151.0,0.000286,30]
[391592395,1760683845082,-451.650932,0.000286,30]
[391592396,1760683845092,-151.0,0.000286,10]
[391592397,1760683845102,-151.0,0.000286,30]
[391592398,1760683845111,-151.0,0.000286,30]
[391592399,1760683845120,-451.650932,0.000286,30]
[391592400,1760683845130,-151.0,0.000286,30]
[391592401,1760683845139,-151.0,0.000286,30]
[391592402,1760683845148,-151.0,0.000286,30]
[391592403,1760683845158,-451.650932,0.000286,30]
[391592404,1760683845169,-151.0,0.000286,30]
[391592405,1760683845179,-151.0,0.000286,30]
[391592406,1760683845188,-151.0,0.000286,30]
[391592407,1760683845198,-151.0,0.000286,30]
[391592408,1760683845208,-151.0,0.000286,30]
[391592409,1760683845218,-151.0,0.000286,15]
[391592410,1760683845227,-151.0,0.000286,15]
[391592411,1760683845237,-151.788015,0.000286,30]
[391592412,1760683845247,-151.0,0.000286,15]
[391592413,1760683845257,-151.0,0.000286,30]
[391592414,1760683845267,-151.0,0.000286,30]
[391592415,1760683845277,-151.0,0.000286,30]
[391592416,1760683845286,-173.178378,0.000286,30]
[391592417,1760683845296,-151.0,0.000286,30]
[391592418,1760683845305,-173.178378,0.000286,30]
[391592419,1760683845315,-151.0,0.000286,30]
[391592420,1760683845324,-151.0,0.000286,30]
[391592421,1760683845334,-152.452874,0.000286,30]
[391592422,1760683845343,-173.178378,0.000286,30]
[391592423,1760683845352,-173.178378,0.000286,30]
[391592424,1760683845361,-151.0,0.000286,30]
[391592425,1760683845371,-151.0,0.000286,30]
[391592426,1760683845380,-151.0,0.000286,30]
[391592427,1760683845389,-151.0,0.000286,30]
[391592428,1760683845398,-151.0,0.000286,30]
[391592429,1760683845408,-151.0,0.000286,30]
[391592430,1760683845420,-151.0,0.000286,30]
[391592431,1760683845429,-1000.0,0.000286,2]
[391592432,1760683845438,-151.0,0.000286,30]
[391592433,1760683845448,-151.0,0.000286,30]
[391592434,1760683845457,-151.0,0.000286,30]
[391592435,1760683845467,-151.0,0.000286,30]
[391592436,1760683845477,-151.0,0.000286,30]
[391592437,1760683845486,-151.0,0.000286,30]
[391592438,1760683845495,-151.0,0.000286,30]
[391592439,1760683845504,-151.0,0.000286,30]
[391592440,1760683845513,-227.048194,0.000286,30]
[391592441,1760683845523,-1456.984921,0.000286,30]
[391592442,1760683845532,-1456.984921,0.000286,30]
[391592443,1760683845542,-151.0,0.000286,30]
[391592444,1760683845551,-1456.984921,0.000286,30]
[391592445,1760683845560,-151.0,0.000286,30]
[391592446,1760683845570,-1456.984921,0.000286,30]
[391592447,1760683845579,-151.0,0.000286,30]
[391592448,1760683845589,-151.0,0.000286,30]
[391592449,1760683845599,-151.0,0.000286,30]
[391592450,1760683845608,-151.0,0.000286,30]
[391592451,1760683845617,-151.0,0.000286,30]
[391592452,1760683845627,-151.0,0.000286,30]
[391592453,1760683845636,-519.864494,0.000286,30]
[391592454,1760683845647,-151.0,0.000286,30]
[391592455,1760683845657,-472.156751,0.000286,30]
[391592457,1760683845666,-519.864494,0.000286,30]
[391592459,1760683845678,-472.156751,0.000286,30]
[391592461,1760683845689,-151.0,0.000286,30]
[391592463,1760683845699,-519.864494,0.000286,30]
[391592465,1760683845708,-151.0,0.000286,30]
[391592467,1760683845718,-472.156751,0.000286,30]
[391592468,1760683845729,-519.864494,0.000286,30]
[391592469,1760683845739,-472.156751,0.000286,30]
[391592470,1760683845748,-151.0,0.000286,30]
[391592471,1760683845758,-151.0,0.000286,30]
[391592473,1760683845767,-185.108387,0.000286,30]
[391592475,1760683845777,-151.0,0.000286,30]
[391592477,1760683845787,-185.108387,0.000286,30]
[391592479,1760683845796,-151.0,0.000286,30]
[391592481,1760683845805,-337.983819,0.000286,30]
[391592483,1760683845815,-185.108387,0.000286,30]
[391592485,1760683845824,-200.044979,0.000286,30]
[391592487,1760683845833,-151.0,0.000286,30]
[391592489,1760683845842,-337.983819,0.000286,30]
[391592490,1760683845852,-185.108387,0.000286,30]
[391592491,1760683845861,-200.044979,0.000286,30]
[391592492,1760683845871,-151.0,0.000286,30]
[391592493,1760683845881,-200.044979,0.000286,30]
[391592494,1760683845891,-337.983819,0.000286,30]
[391592495,1760683845901,-200.044979,0.000286,30]
[391592496,1760683845910,-337.983819,0.000286,30]
[391592497,1760683845922,-151.0,0.000286,30]
[391592498,1760683845931,-151.0,0.000286,30]
[391592499,1760683845943,-724.971892,0.000286,30]
[391592500,1760683845952,-724.971892,0.000286,30]
[391592501,1760683845962,-151.0,0.000286,30]
[391592502,1760683845972,-724.971892,0.000286,30]
[391592503,1760683845982,-151.0,0.000286,30]
[391592504,1760683845992,-724.971892,0.000286,30]
[391592505,1760683846001,-151.0,0.000286,30]
[391592506,1760683846011,-151.0,0.000286,30]
[391592507,1760683846021,-151.0,0.000286,30]
[391592508,1760683846030,-151.0,0.000286,30]
[391592509,1760683846039,-151.0,0.000286,30]
[391592510,1760683846049,-151.0,0.000286,30]
[391592511,1760683846058,-151.0,0.000286,30]
[391592512,1760683846067,-151.0,0.000286,30]
[391592513,1760683846077,-435.591363,0.000286,30]
[391592514,1760683846086,-435.591363,0.000286,30]
[391592515,1760683846096,-435.591363,0.000286,30]
[391592516,1760683846106,-435.591363,0.000286,30]
[391592517,1760683846116,-466.10968,0.000286,30]
[391592518,1760683846126,-466.10968,0.000286,30]
[391592519,1760683846135,-466.10968,0.000286,30]
[391592520,1760683846146,-466.10968,0.000286,30]
[391592521,1760683846155,-1686.638184,0.000286,30]
[391592522,1760683846165,-1686.638184,0.000286,30]
[391592523,1760683846180,-151.0,0.000286,30]
[391592524,1760683846189,-1686.638184,0.000286,30]
[391592525,1760683846199,-1686.638184,0.000286,30]
[391592526,1760683846208,-151.0,0.000286,30]
[391592527,1760683846217,-151.0,0.000286,30]
[391592528,1760683846228,-151.0,0.000286,30]
[391592529,1760683846238,-151.0,0.000286,30]
[391592530,1760683846248,-151.0,0.000286,30]
[391592531,1760683846257,-151.0,0.000286,30]
[391592532,1760683846267,-1029.673074,0.000286,30]
[391592533,1760683846277,-151.0,0.000286,30]
[391592534,1760683846287,-1029.673074,0.000286,30]
[391592535,1760683846296,-1029.673074,0.000286,30]
[391592536,1760683846306,-1595.538041,0.000286,30]
[391592537,1760683846315,-1029.673074,0.000286,30]
[391592538,1760683846325,-1595.538041,0.000286,30]
[391592539,1760683846335,-1595.538041,0.000286,30]
[391592540,1760683846344,-410.708648,0.000286,30]
[391592541,1760683846353,-1595.538041,0.000286,30]
[391592542,1760683846363,-410.708648,0.000286,30]
[391592543,1760683846373,-410.708648,0.000286,30]
[391592544,1760683846383,-410.708648,0.000286,30]
[391592545,1760683846392,-5432.151601,0.000286,30]
[391592546,1760683846402,-1030.153695,0.000286,30]
[391592547,1760683846411,-151.0,0.000286,30]
[391592548,1760683846423,-5432.151601,0.000286,30]
[391592549,1760683846434,-151.0,0.000286,30]
[391592551,1760683846443,-1030.153695,0.000286,30]
[391592553,1760683846453,-5432.151601,0.000286,30]
[391592555,1760683846461,-151.0,0.000286,30]
[391592557,1760683846471,-1030.153695,0.000286,30]
[391592559,1760683846482,-5432.151601,0.000286,30]
[391592560,1760683846492,-1030.153695,0.000286,30]
[391592561,1760683846503,-151.0,0.000286,30]
[391592562,1760683846513,-363.315581,0.000286,30]
[391592563,1760683846522,-151.0,0.000286,30]
[391592564,1760683846532,-151.0,0.000286,30]
[391592565,1760683846542,-363.315581,0.000286,30]
[391592566,1760683846551,-151.0,0.000286,30]
[391592567,1760683846561,-151.0,0.000286,30]
[391592568,1760683846571,-151.0,0.000286,30]
[391592569,1760683846581,-363.315581,0.000286,30]
[391592570,1760683846591,-151.0,0.000286,30]
[391592571,1760683846601,-151.0,0.000286,30]
[391592572,1760683846611,-363.315581,0.000286,30]
[391592573,1760683846621,-719.74216,0.000286,30]
[391592574,1760683846630,-1021.542235,0.000286,30]
[391592575,1760683846639,-719.74216,0.000286,30]
[391592576,1760683846652,-1021.542235,0.000286,30]
[391592577,1760683846662,-719.74216,0.000286,30]
[391592578,1760683846674,-1021.542235,0.000286,30]
[391592579,1760683846683,-719.74216,0.000286,30]
[391592580,1760683846693,-1021.542235,0.000286,30]
[391592581,1760683846703,-151.0,0.000286,30]
[391592582,1760683846713,-151.0,0.000286,30]
[391592583,1760683846722,-151.0,0.000286,30]
[391592584,1760683846732,-151.0,0.000286,30]
[391592585,1760683846741,-151.0,0.000286,30]
[391592586,1760683846751,-151.0,0.000286,30]
[391592587,1760683846761,-151.0,0.000286,30]
[391592588,1760683846771,-259.915907,0.000286,30]
[391592589,1760683846780,-151.0,0.000286,30]
[391592590,1760683846790,-151.0,0.000286,30]
[391592591,1760683846799,-151.0,0.000286,30]
[391592592,1760683846814,-168.906107,0.000286,30]
[391592593,1760683846826,-556.749937,0.000286,30]
[391592594,1760683846835,-151.0,0.000286,30]
[391592595,1760683846844,-556.749937,0.000286,30]
[391592596,1760683846854,-151.0,0.000286,30]
[391592597,1760683846864,-151.0,0.000286,30]
[391592598,1760683846874,-556.749937,0.000286,30]
[391592599,1760683846884,-151.0,0.000286,30]
[391592600,1760683846893,-556.749937,0.000286,30]
[391592601,1760683846904,-277.290338,0.000286,30]
[391592602,1760683846913,-276.890591,0.000286,30]
[391592603,1760683846926,-151.0,0.000286,30]
[391592604,1760683846935,-151.0,0.000286,30]
[391592605,1760683846945,-276.890591,0.000286,30]
[391592606,1760683846954,-265.065136,0.000286,30]
[391592607,1760683846963,-151.0,0.000286,30]
[391592608,1760683846972,-276.890591,0.000286,30]
[391592610,1760683846982,-151.0,0.000286,30]
[391592612,1760683846991,-276.890591,0.000286,30]
[391592614,1760683847000,-151.0,0.000286,30]
[391592616,1760683847010,-151.0,0.000286,30]
[391592618,1760683847020,-398.897576,0.000286,30]
[391592620,1760683847029,-151.0,0.000286,30]
[391592622,1760683847038,-518.332403,0.000286,30]
[391592624,1760683847047,-398.897576,0.000286,30]
[391592626,1760683847057,-267.382914,0.000286,30]
[391592628,1760683847065,-151.0,0.000286,30]
[391592630,1760683847075,-518.332403,0.000286,30]
[391592632,1760683847085,-151.0,0.000286,30]
[391592634,1760683847094,-151.0,0.000286,30]
[391592636,1760683847111,-398.897576,0.000286,30]
[391592638,1760683847124,-267.382914,0.000286,30]
[391592640,1760683847133,-518.332403,0.000286,30]
[391592642,1760683847143,-151.0,0.000286,30]
[391592644,1760683847152,-151.0,0.000286,30]
[391592646,1760683847161,-151.0,0.000286,30]
[391592648,1760683847175,-398.897576,0.000286,30]
[391592650,1760683847184,-267.382914,0.000286,30]
[391592652,1760683847193,-151.0,0.000286,30]
[391592654,1760683847202,-518.332403,0.000286,30]
[391592656,1760683847212,-151.0,0.000286,30]
[391592658,1760683847220,-151.0,0.000286,30]
[391592660,1760683847230,-151.0,0.000286,30]
[391592662,1760683847239,-267.382914,0.000286,30]
[391592664,1760683847248,-151.0,0.000286,30]
[391592666,1760683847258,-151.0,0.000286,30]
[391592668,1760683847267,-151.0,0.000286,30]
[391592670,1760683847278,-151.0,0.000286,30]
[391592672,1760683847287,-151.0,0.000286,30]
[391592674,1760683847296,-151.0,0.000286,30]
[391592676,1760683847306,-286.188496,0.000286,30]
[391592678,1760683847315,-151.0,0.000286,30]
[391592680,1760683847325,-151.0,0.000286,30]
[391592682,1760683847334,-286.188496,0.000286,30]
[391592685,1760683847344,-151.0,0.000286,30]
[391592686,1760683847354,-286.188496,0.000286,30]
[391592689,1760683847363,-172.690871,0.000286,30]
[391592691,1760683847373,-151.0,0.000286,30]
[391592692,1760683847383,-172.690871,0.000286,30]
[391592695,1760683847393,-286.188496,0.000286,30]
[391592697,1760683847402,-267.729726,0.000286,30]
[391592699,1760683847412,-172.690871,0.000286,30]
[391592701,1760683847425,-172.690871,0.000286,30]
[391592703,1760683847436,-279.078103,0.000286,30]
[391592705,1760683847445,-279.078103,0.000286,30]
[391592707,1760683847455,-151.0,0.000286,30]
[391592709,1760683847464,-279.078103,0.000286,30]
[391592711,1760683847474,-279.078103,0.000286,30]
[391592713,1760683847483,-167.12577,0.000286,30]
[391592715,1760683847493,-151.0,0.000286,30]
[391592717,1760683847502,-151.0,0.000286,30]
[391592719,1760683847512,-151.0,0.000286,30]
[391592721,1760683847521,-151.0,0.000286,30]
[391592723,1760683847531,-151.0,0.000286,30]
[391592725,1760683847540,-151.0,0.000286,30]
[391592727,1760683847550,-240.947938,0.000286,30]
[391592729,1760683847560,-151.0,0.000286,30]
[391592731,1760683847570,-151.0,0.000286,30]
[391592733,1760683847580,-151.0,0.000286,30]
[391592735,1760683847589,-151.0,0.000286,30]
[391592737,1760683847599,-151.269282,0.000286,30]
[391592758,1760683847790,-151.0,0.000286,30]
[391592761,1760683847811,-151.0,0.000286,30]
[391592763,1760683847821,-151.0,0.000286,30]
[391592765,1760683847830,-151.0,0.000286,30]
[391592767,1760683847840,-151.0,0.000286,30]
[391592769,1760683847850,-151.0,0.000286,30]
[391592771,1760683847859,-460.00955,0.000286,30]
[391592773,1760683847869,-311.327317,0.000286,30]
[391592775,1760683847879,-460.00955,0.000286,30]
[391592777,1760683847893,-151.0,0.000286,30]
[391592779,1760683847903,-311.327317,0.000286,30]
[391592781,1760683847913,-460.00955,0.000286,30]
[391592783,1760683847924,-151.0,0.000286,30]
[391592784,1760683847934,-151.0,0.000286,30]
[391592787,1760683847944,-151.0,0.000286,30]